{"text_format":"3","workbook":"xlsx","n_sheets":11,"sheets":["1 кл.ФГОС","2 класс.","3 класс.","4 класс.","5 кл. ФГОС","6 класс.","7 класс.","8 класс.","9 класс.","10 класс.","11 класс."],"read":"whole","date_system":"1900"}

{"sheet":"1 кл.ФГОС","index":0,"n_rows":27,"n_cols":12,"rows_kept":27,"merged":[[0,0,0,11],[1,0,1,11],[2,0,2,11],[3,0,3,11],[4,0,6,0],[4,1,6,1],[4,2,4,9],[4,10,6,11],[5,2,5,3],[5,4,5,5],[5,6,5,7],[5,8,5,9],[6,2,6,9],[7,0,8,0],[7,2,7,3],[7,4,7,5],[7,6,7,7],[7,8,7,9],[7,10,7,11],[8,2,8,3],[8,4,8,5],[8,6,8,7],[8,8,8,9],[8,10,8,11],[9,0,11,0],[12,2,12,3],[12,4,12,5],[12,6,12,7],[12,8,12,9],[12,10,12,11],[13,2,13,3],[13,4,13,5],[13,6,13,7],[13,8,13,9],[13,10,13,11],[14,2,14,3],[14,4,14,5],[14,6,14,7],[14,8,14,9],[14,10,14,11],[15,2,15,3],[15,4,15,5],[15,6,15,7],[15,8,15,9],[15,10,15,11],[16,0,17,0],[16,2,16,3],[16,4,16,5],[16,6,16,7],[16,8,16,9],[16,10,16,11],[17,2,17,3],[17,4,17,5],[17,6,17,7],[17,8,17,9],[17,10,17,11],[18,2,18,3],[18,4,18,5],[18,6,18,7],[18,8,18,9],[18,10,18,11],[19,2,19,3],[19,4,19,5],[19,6,19,7],[19,8,19,9],[19,10,19,11],[20,0,20,1],[20,2,20,3],[20,4,20,5],[20,6,20,7],[20,8,20,9],[20,10,20,11],[21,0,21,1],[21,2,21,3],[21,4,21,5],[21,6,21,7],[21,8,21,9],[21,10,21,11],[22,4,22,5],[22,6,22,7],[22,8,22,9],[22,10,22,11],[23,4,23,5],[23,6,23,7],[23,8,23,9],[23,10,23,11],[24,0,24,1],[24,2,24,3],[24,4,24,5],[24,6,24,7],[24,8,24,9],[24,10,24,11],[25,0,25,1],[25,2,25,3],[25,4,25,5],[25,6,25,7],[25,8,25,9],[25,10,25,11],[26,0,26,1],[26,2,26,3],[26,4,26,5],[26,6,26,7],[26,8,26,9],[26,10,26,11]]}
["УЧЕБНЫЙ ПЛАН \nв соответствии с обновленными ФГОС НОО"]
["Муниципального бюджетного общеобразовательного учреждения \n \"Гимназия №175\" Советского района города Казани"]
["на 2022/2023 учебный год "]
["для 1 классов "]
["Предметные области","Учебные предметы","Классы",{"$nulls":7},"Всего часов"]
[null,null,"1 класс                (2022-2023)",null,"2 класс                (2023-2024)",null,"3 класс                (2024-2025)",null,"4 класс                (2025-2026)"]
[null,null,"Количество часов в неделю"]
["Русский язык и литературное чтение ","Русский язык",5,null,5,null,5,null,5,null,{"$f":"SUM(C8:I8)","v":20}]
[null,"Литературное чтение",3,null,3,null,3,null,3,null,{"$f":"SUM(C9:I9)","v":12}]
["Родной язык и литературное чтение на родном языке","Родной язык",1,null,2,null,2,null,1,null,6]
[null,"Литературное чтение на родном языке",1,null,1,null,1,null,1,null,4]
[null,"Государственный язык республики Российской Федерации ",null,2,null,3,null,3,null,2,null,10]
["Иностранный язык","Иностранный язык (английский)",null,null,2,null,2,null,2,null,{"$f":"SUM(C13:I13)","v":6}]
["Математика и информатика","Математика",4,null,4,null,4,null,4,null,16]
["Обществознание и естествознание ","Окружающий мир",2,null,2,null,2,null,2,null,8]
["Основы религиозных культур и светской этики","Основы религиозных культур и светской этики",{"$nulls":6},1,null,1]
["Искусство","Музыка",1,null,1,null,1,null,1,null,4]
[null,"Изобразительное искусство",1,null,1,null,1,null,1,null,4]
["Технология","Технология",1,null,1,null,1,null,1,null,4]
["Физическая культура ","Физическая культура ",2,null,2,null,2,null,2,null,8]
["Итого:",null,{"$f":"SUM(C8:C20)","v":21},null,24,null,24,null,24,null,93]
["Часть, формируемая участниками образовательных отношений",null,0,null,1,null,1,null,2,null,4]
["Иностранный язык","Иностранный язык (английский)",null,null,1,null,1,null,1,null,3]
["Родной язык и литературное чтение на родном языке","Родной язык",{"$nulls":6},1]
["Всего часов",null,693,null,850,null,850,null,884,null,{"$f":"SUM(C25:I25)","v":3277}]
["Недельная нагрузка при 6-дневной \nучебной неделе",null,21,null,25,null,25,null,26,null,{"$f":"SUM(C26:I26)","v":97}]
["Макисмально допустимая недельная нагрузка, допущенная действующими санитарными правилами и гигиеническими нормативами",null,21,null,26,null,26,null,26,null,{"$f":"SUM(C27:I27)","v":99}]

{"sheet":"2 класс.","index":1,"n_rows":27,"n_cols":8,"rows_kept":27,"merged":[[0,1,0,7],[1,1,1,7],[2,1,2,7],[3,1,3,7],[4,1,6,1],[4,2,6,2],[4,3,4,6],[4,7,6,7],[6,3,6,6],[7,1,8,1],[9,1,10,1],[15,1,16,1],[19,1,19,2],[20,1,20,2],[23,1,23,2],[24,1,24,2],[25,1,25,2],[26,1,26,2]]}
[null,"УЧЕБНЫЙ ПЛАН"]
[null,"Муниципального бюджетного общеобразовательного учреждения \n \"Гимназия №175\" Советского района города Казани"]
[null,"на 2022/2023 учебный год "]
[null,"для 2 классов"]
[null,"Предметные области","Учебные предметы","Классы",{"$nulls":3},"Всего часов"]
[{"$nulls":3},"1 класс                (2021-2022)","2 класс                (2022-2023)","3 класс                (2023-2024)","4 класс                (2024-2025)"]
[{"$nulls":3},"Количество часов в неделю"]
[null,"Русский язык и литературное чтение ","Русский язык",4,5,5,5,{"$f":"SUM(D8:G8)","v":19}]
[null,null,"Литературное чтение",2,3,3,3,{"$f":"SUM(D9:G9)","v":11}]
[null,"Родной язык и литературное чтение на родном языке","Родной язык",2,2,2,2,{"$f":"SUM(D10:G10)","v":8}]
[null,null,"Литературное чтение на родном языке",1,1,1,1,{"$f":"SUM(D11:G11)","v":4}]
[null,"Иностранный язык","Иностранный язык (английский)",null,2,2,2,6]
[null,"Математика и информатика","Математика ",4,4,4,4,16]
[null,"Обществознание и естествознание","Окружающий мир ",2,2,2,2,8]
[null,"Основы религиозных культур и светской этики","Основы религиозных культур и светской этики",{"$nulls":3},1,{"$f":"SUM(D15:G15)","v":1}]
[null,"Искусство","Музыка",1,1,1,1,4]
[null,null,"Изобразительное искусство",1,1,1,1,4]
[null,"Технология","Технология",1,1,1,1,4]
[null,"Физическая культура ","Физическая культура ",3,3,3,3,12]
[null,"Итого:",null,{"$f":"SUM(D8:D19)","v":21},{"$f":"SUM(E8:E19)","v":25},{"$f":"SUM(F8:F19)","v":25},{"$f":"SUM(G8:G19)","v":26},97]
[null,"Часть, формируемая участниками образовательных отношений",null,null,1,1,null,2]
[null,"Русский язык и литературное чтение ","Русский язык",null,1,null,null,1]
[null,"Математика и информатика","Математика",null,null,1,null,1]
[null,"Учебные недели",null,33,34,34,34,{"$f":"SUM(D24:G24)","v":135}]
[null,"Всего часов",null,693,884,884,884,{"$f":"SUM(D25:G25)","v":3345}]
[null,"Недельная нагрузка при 6-дневной \nучебной неделе",null,21,26,26,26,{"$f":"SUM(D26:G26)","v":99}]
[null,"Макисмально допустимая недельная нагрузка, допущенная действующими санитарными правилами и гигиеническими нормативами",null,21,26,26,26,{"$f":"SUM(D27:G27)","v":99}]

{"sheet":"3 класс.","index":2,"n_rows":27,"n_cols":8,"rows_kept":27,"merged":[[0,1,0,7],[1,1,1,7],[2,1,2,7],[3,1,3,7],[4,1,6,1],[4,2,6,2],[4,3,4,6],[4,7,6,7],[6,3,6,6],[7,1,8,1],[9,1,10,1],[15,1,16,1],[19,1,19,2],[20,1,20,2],[23,1,23,2],[24,1,24,2],[25,1,25,2],[26,1,26,2]]}
[null,"УЧЕБНЫЙ ПЛАН"]
[null,"Муниципального бюджетного общеобразовательного учреждения \n \"Гимназия №175\" Советского района города Казани"]
[null,"на 2022/2023 учебный год "]
[null,"для 3 классов"]
[null,"Предметные области","Учебные предметы","Классы",{"$nulls":3},"Всего часов"]
[{"$nulls":3},"1 класс                (2020-2021)","2 класс                (2021-2022)","3 класс                (2022-2023)","4 класс                (2023-2024)"]
[{"$nulls":3},"Количество часов в неделю"]
[null,"Русский язык и литературное чтение ","Русский язык",4,5,5,5,{"$f":"SUM(D8:G8)","v":19}]
[null,null,"Литературное чтение",2,3,3,3,{"$f":"SUM(D9:G9)","v":11}]
[null,"Родной язык и литературное чтение на родном языке","Родной язык",2,2,2,2,{"$f":"SUM(D10:G10)","v":8}]
[null,null,"Литературное чтение на родном языке",1,1,1,1,{"$f":"SUM(D11:G11)","v":4}]
[null,"Иностранный язык","Иностранный язык (английский)",null,2,2,2,6]
[null,"Математика и информатика","Математика ",4,4,4,4,16]
[null,"Обществознание и естествознание ","Окружающий мир",2,2,2,2,8]
[null,"Основы религиозных культур и светской этики","Основы религиозных культур и светской этики",{"$nulls":3},1,{"$f":"SUM(D15:G15)","v":1}]
[null,"Искусство","Музыка",1,1,1,1,4]
[null,null,"Изобразительное искусство",1,1,1,1,4]
[null,"Технология","Технология",1,1,1,1,4]
[null,"Физическая культура ","Физическая культура ",3,3,3,3,12]
[null,"Итого:",null,{"$f":"SUM(D8:D19)","v":21},{"$f":"SUM(E8:E19)","v":25},{"$f":"SUM(F8:F19)","v":25},{"$f":"SUM(G8:G19)","v":26},97]
[null,"Часть, формируемая участниками образовательных отношений",null,null,1,1,null,2]
[null,"Русский язык и литературное чтение ","Русский язык",null,1,null,null,1]
[null,"Математика и информатика","Математика",null,null,1,null,1]
[null,"Учебные недели",null,33,34,34,34,{"$f":"SUM(D24:G24)","v":135}]
[null,"Всего часов",null,693,884,884,884,{"$f":"SUM(D25:G25)","v":3345}]
[null,"Недельная нагрузка при 6-дневной \nучебной неделе",null,21,26,26,26,{"$f":"SUM(D26:G26)","v":99}]
[null,"Макисмально допустимая недельная нагрузка, допущенная действующими санитарными правилами и гигиеническими нормативами",null,21,26,26,26,{"$f":"SUM(D27:G27)","v":99}]

{"sheet":"4 класс.","index":3,"n_rows":26,"n_cols":8,"rows_kept":26,"merged":[[0,1,0,7],[1,1,1,7],[2,1,2,7],[3,1,3,7],[4,1,6,1],[4,2,6,2],[4,3,4,6],[4,7,6,7],[6,3,6,6],[7,1,8,1],[9,1,10,1],[15,1,16,1],[19,1,19,2],[20,1,20,2],[22,1,22,2],[23,1,23,2],[24,1,24,2],[25,1,25,2]]}
[null,"УЧЕБНЫЙ ПЛАН"]
[null,"Муниципального бюджетного общеобразовательного учреждения \n \"Гимназия №175\" Советского района города Казани"]
[null,"на 2022/2023 учебный год "]
[null,"для 4 классов"]
[null,"Предметные области","Учебные предметы","Классы",{"$nulls":3},"Всего часов"]
[{"$nulls":3},"1 класс                (2019-2020)","2 класс                (2020-2021)","3 класс                (2021-2022)","4 класс                (2022-2023)"]
[{"$nulls":3},"Количество часов в неделю"]
[null,"Русский язык и литературное чтение ","Русский язык",4,5,5,5,{"$f":"SUM(D8:G8)","v":19}]
[null,null,"Литературное чтение",2,3,3,3,{"$f":"SUM(D9:G9)","v":11}]
[null,"Родной язык и литературное чтение на родном языке","Родной язык",2,2,2,2,{"$f":"SUM(D10:G10)","v":8}]
[null,null,"Литературное чтение на родном языке",1,1,1,1,{"$f":"SUM(D11:G11)","v":4}]
[null,"Иностранный язык","Иностранный язык (английский)",null,2,2,2,6]
[null,"Математика и информатика","Математика ",4,4,4,4,16]
[null,"Обществознание и естествознание","Окружающий мир",2,2,2,2,8]
[null,"Основы религиозных культур и светской этики","Основы религиозных культур и светской этики",{"$nulls":3},1,{"$f":"SUM(D15:G15)","v":1}]
[null,"Искусство","Музыка",1,1,1,1,4]
[null,null,"Изобразительное искусство",1,1,1,1,4]
[null,"Технология","Технология",1,1,1,1,4]
[null,"Физическая культура ","Физическая культура ",3,3,3,3,12]
[null,"Итого:",null,{"$f":"SUM(D8:D19)","v":21},{"$f":"SUM(E8:E19)","v":25},{"$f":"SUM(F8:F19)","v":25},{"$f":"SUM(G8:G19)","v":26},97]
[null,"Часть, формируемая участниками образовательных отношений",null,null,1,1,null,2]
[null,"Математика и информатика","Математика",null,1,1,null,2]
[null,"Учебные недели",null,33,34,34,34,{"$f":"SUM(D23:G23)","v":135}]
[null,"Всего часов",null,693,884,884,884,{"$f":"SUM(D24:G24)","v":3345}]
[null,"Недельная нагрузка при 6-дневной \nучебной неделе",null,21,26,26,26,{"$f":"SUM(D25:G25)","v":99}]
[null,"Макисмально допустимая недельная нагрузка, допущенная действующими санитарными правилами и гигиеническими нормативами",null,21,26,26,26,{"$f":"SUM(D26:G26)","v":99}]

{"sheet":"5 кл. ФГОС","index":4,"n_rows":38,"n_cols":15,"rows_kept":38,"merged":[[0,1,0,14],[1,1,1,14],[2,1,2,14],[3,1,3,14],[4,1,6,1],[4,2,6,2],[4,3,4,12],[4,13,6,14],[5,3,5,4],[5,5,5,6],[5,7,5,8],[5,9,5,10],[5,11,5,12],[6,3,6,12],[7,1,8,1],[7,3,7,4],[7,5,7,6],[7,7,7,8],[7,9,7,10],[7,11,7,12],[7,13,7,14],[8,3,8,4],[8,5,8,6],[8,7,8,8],[8,9,8,10],[8,11,8,12],[8,13,8,14],[9,1,11,1],[12,3,12,4],[12,5,12,6],[12,7,12,8],[12,9,12,10],[12,11,12,12],[12,13,12,14],[13,3,13,4],[13,5,13,6],[13,7,13,8],[13,9,13,10],[13,11,13,12],[13,13,13,14],[14,1,18,1],[14,3,14,4],[14,5,14,6],[14,7,14,8],[14,9,14,10],[14,11,14,12],[14,13,14,14],[15,3,15,4],[15,5,15,6],[15,7,15,8],[15,9,15,10],[15,11,15,12],[15,13,15,14],[16,3,16,4],[16,5,16,6],[16,7,16,8],[16,9,16,10],[16,11,16,12],[16,13,16,14],[17,3,17,4],[17,5,17,6],[17,7,17,8],[17,9,17,10],[17,11,17,12],[17,13,17,14],[18,3,18,4],[18,5,18,6],[18,7,18,8],[18,9,18,10],[18,11,18,12],[18,13,18,14],[19,1,21,1],[19,3,19,4],[19,5,19,6],[19,7,19,8],[19,9,19,10],[19,11,19,12],[19,13,19,14],[20,3,20,4],[20,5,20,6],[20,7,20,8],[20,9,20,10],[20,11,20,12],[20,13,20,14],[21,3,21,4],[21,5,21,6],[21,7,21,8],[21,9,21,10],[21,11,21,12],[21,13,21,14],[22,1,24,1],[22,3,22,4],[22,5,22,6],[22,7,22,8],[22,9,22,10],[22,11,22,12],[22,13,22,14],[23,3,23,4],[23,5,23,6],[23,7,23,8],[23,9,23,10],[23,11,23,12],[23,13,23,14],[24,3,24,4],[24,5,24,6],[24,7,24,8],[24,9,24,10],[24,11,24,12],[24,13,24,14],[25,1,26,1],[25,3,25,4],[25,5,25,6],[25,7,25,8],[25,9,25,10],[25,11,25,12],[25,13,25,14],[26,3,26,4],[26,5,26,6],[26,7,26,8],[26,9,26,10],[26,11,26,12],[26,13,26,14],[27,3,27,4],[27,5,27,6],[27,7,27,8],[27,9,27,10],[27,11,27,12],[27,13,27,14],[28,1,29,1],[28,3,28,4],[28,5,28,6],[28,7,28,8],[28,9,28,10],[28,11,28,12],[28,13,28,14],[29,3,29,4],[29,5,29,6],[29,7,29,8],[29,9,29,10],[29,11,29,12],[29,13,29,14],[30,1,30,2],[30,3,30,4],[30,5,30,6],[30,7,30,8],[30,9,30,10],[30,11,30,12],[30,13,30,14],[31,1,31,2],[31,3,31,4],[31,5,31,6],[31,7,31,8],[31,9,31,10],[31,11,31,12],[31,13,31,14],[32,1,33,1],[32,2,33,2],[32,3,33,4],[32,5,33,6],[32,7,33,8],[32,9,33,10],[32,11,33,12],[32,13,33,14],[34,1,34,2],[34,3,34,4],[34,5,34,6],[34,7,34,8],[34,9,34,10],[34,11,34,12],[34,13,34,14],[35,1,35,2],[35,3,35,4],[35,5,35,6],[35,7,35,8],[35,9,35,10],[35,11,35,12],[35,13,35,14],[36,1,36,2],[36,3,36,4],[36,5,36,6],[36,7,36,8],[36,9,36,10],[36,11,36,12],[36,13,36,14],[37,1,37,2],[37,3,37,4],[37,5,37,6],[37,7,37,8],[37,9,37,10],[37,11,37,12],[37,13,37,14]]}
[null,"УЧЕБНЫЙ ПЛАН\nв соответствии с обновленными ФГОС ООО"]
[null,"Муниципального бюджетного общеобразовательного учреждения \n \"Гимназия №175\" Советского района города Казани"]
[null,"на 2022/2023 учебный год "]
[null,"для 5 классов"]
[null,"Предметные области","Учебные предметы","Классы",{"$nulls":9},"Всего часов"]
[{"$nulls":3},"5 класс                (2022-2023)",null,"6 класс                (2022-2023)",null,"7 класс                (2023-2024)",null,"8 класс                (2024-2025)",null,"9 класс                (2025-2026)"]
[{"$nulls":3},"Количество часов в неделю"]
[null,"Русский язык и литература","Русский язык",5,null,6,null,4,null,3,null,3,null,{"$f":"SUM(D8:L8)","v":21}]
[null,null,"Литература",3,null,3,null,2,null,2,null,3,null,{"$f":"SUM(D9:L9)","v":13}]
[null,"Родной язык и родная литература","Родной язык",2,null,2,null,2,null,2,null,2,null,10]
[null,null,"Родная литература",1,null,1,null,1,null,1,null,1,null,5]
[null,null,"Государственный язык республики Российской Федерации",null,3,null,3,null,3,null,3,null,3,null,15]
[null,"Иностранный язык","Иностранный язык (английский)",3,null,3,null,3,null,3,null,3,null,{"$f":"SUM(D13:L13)","v":15}]
[null,"Основы духовно-нравственной культуры народов России","Основы духовно-нравственной \nкультуры народов России",1,{"$nulls":9},{"$f":"SUM(D14:M14)","v":1}]
[null,"Математика и информатика","Математика ",5,null,5,{"$nulls":7},{"$f":"SUM(D15:M15)","v":10}]
[null,null,"Алгебра",{"$nulls":4},3,null,3,null,3,null,{"$f":"SUM(E16:L16)","v":9}]
[null,null,"Геометрия",{"$nulls":4},2,null,2,null,2,null,{"$f":"SUM(E17:L17)","v":6}]
[null,null,"Вероятность и статистика",{"$nulls":4},1,null,1,null,1,null,{"$f":"SUM(E18:L18)","v":3}]
[null,null,"Информатика",{"$nulls":4},1,null,1,null,1,null,{"$f":"SUM(E19:L19)","v":3}]
[null,"Общественно-научные предметы","История. Всеобшая история",2,null,2,null,2,null,2,null,2,null,{"$f":"SUM(D20:L20)","v":10}]
[null,null,"Обществознание",null,null,1,null,1,null,1,null,1,null,{"$f":"SUM(F21:L21)","v":4}]
[null,null,"География",1,null,1,null,2,null,2,null,2,null,{"$f":"SUM(D22:L22)","v":8}]
[null,"Естественно-научные предметы","Физика",{"$nulls":4},2,null,2,null,3,null,{"$f":"SUM(H23:L23)","v":7}]
[null,null,"Химия",{"$nulls":6},2,null,2,null,{"$f":"SUM(J24:L24)","v":4}]
[null,null,"Биология",1,null,1,null,2,null,2,null,2,null,{"$f":"SUM(D25:L25)","v":8}]
[null,"Искусство","Изобразительное искусство",1,null,1,null,1,{"$nulls":5},{"$f":"SUM(D26:M26)","v":3}]
[null,null,"Музыка",1,null,1,null,1,null,1,{"$nulls":3},{"$f":"SUM(D27:M27)","v":4}]
[null,"Технология","Технология",2,null,2,null,2,null,1,null,1,null,{"$f":"SUM(D28:L28)","v":8}]
[null,"Физическая культура и основы безопасности жизнедеятельности","Физическая культура ",2,null,2,null,2,null,2,null,2,null,{"$f":"SUM(D29:L29)","v":10}]
[null,null,"Основы безопасности \nжизнедеятельности",{"$nulls":6},1,null,1,null,{"$f":"SUM(E30:L30)","v":2}]
[null,"Итого:",null,30,null,31,null,34,null,34,null,35,null,{"$f":"SUM(D31:L31)","v":164}]
[null,"Часть, формируемая участниками образовательных отношений",null,1,null,1,null,1,null,1,null,1,null,{"$f":"SUM(E32:L32)","v":4}]
[null,"Иностранный язык","Второй иностранный язык (немецкий)",1,null,1,null,1,null,1,null,1,null,{"$f":"SUM(E33:L33)","v":4}]
[]
[null,"Учебные недели",null,34,null,34,null,34,null,34,null,34,null,34]
[null,"Всего часов",null,1054,null,1088,null,1190,null,1190,null,1224,null,{"$f":"SUM(D36:L36)","v":5746}]
[null,"Недельная нагрузка при 6-дневной учебной неделе",null,31,null,32,null,35,null,35,null,36,null,{"$f":"SUM(D37:L37)","v":169}]
[null,"Макисмально допустимая недельная нагрузка, допущенная действующими санитарными правилами и гигиеническими нормативами",null,32,null,33,null,35,null,36,null,36,null,{"$f":"SUM(D38:L38)","v":172}]

{"sheet":"6 класс.","index":5,"n_rows":39,"n_cols":12,"rows_kept":39,"merged":[[0,1,0,8],[1,1,1,8],[2,1,2,8],[3,1,3,8],[5,1,7,1],[5,2,7,2],[5,3,5,7],[5,8,7,8],[7,3,7,7],[8,1,9,1],[10,1,11,1],[12,1,13,1],[15,1,18,1],[19,1,21,1],[22,1,24,1],[25,1,26,1],[28,1,29,1],[30,1,30,2],[31,1,31,2],[35,1,35,2],[36,1,36,2],[37,1,37,2],[38,1,38,2]]}
[null,"УЧЕБНЫЙ ПЛАН"]
[null,"Муниципального бюджетного общеобразовательного учреждения \n\"Гимназия №175\" Советского района города Казани"]
[null,"на 2022/2023 учебный год "]
[null,"для 6 классов "]
[]
[null,"Предметные области","Учебные предметы","Классы",{"$nulls":4},"Всего часов"]
[{"$nulls":3},"5 класс                (2021-2022)","6 класс                (2022-2023)","7 класс                (2023-2024)","8 класс                (2024-2025)","9 класс                (2025-2026)"]
[{"$nulls":3},"Количество часов в неделю"]
[null,"Русский язык и литература","Русский язык",5,6,4,3,3,{"$f":"SUM(D9:H9)","v":21}]
[null,null,"Литература",3,3,2,2,3,{"$f":"SUM(D10:H10)","v":13}]
[null,"Родной язык и родная литература","Родной язык",2,2,2,2,2,{"$f":"SUM(D11:H11)","v":10}]
[null,null,"Родная литература",1,1,1,1,1,{"$f":"SUM(D12:H12)","v":5}]
[null,"Иностранные языки","Иностранный язык (английский)",3,3,3,3,3,15]
[null,null,"Второй иностранный язык (немецкий)",null,1,1,1,1,4]
[null,"Основы духовно-нравственной культуры народов России","Основы духовно-нравственной \nкультуры народов России",1,{"$nulls":4},1]
[null,"Математика и информатика","Математика ",5,5,{"$nulls":3},10]
[null,null,"Алгебра",null,null,3,3,3,9]
[null,null,"Геометрия",null,null,2,2,2,6]
[null,null,"Информатика",null,null,1,1,1,3]
[null,"Общественно-научные предметы","История России. Всеобшая история",2,2,2,2,2,10]
[null,null,"Обществознание",null,1,1,1,1,4]
[null,null,"География",1,1,2,2,2,8]
[null,"Естественно-научные предметы","Физика",null,null,2,2,3,{"$f":"SUM(F23:H23)","v":7}]
[null,null,"Химия",{"$nulls":3},2,2,{"$f":"SUM(G24:H24)","v":4}]
[null,null,"Биология",1,1,1,2,2,7]
[null,"Искусство","Музыка",1,1,1,1,null,4]
[null,null,"Изобразительное искусство",1,1,1,null,null,3]
[null,"Технология","Технология",2,2,2,2,1,9]
[null,"Физическая культура и основы безопасности жизнедеятельности","Физическая культура ",3,2,2,2,2,11]
[null,null,"Основы безопасноти жизнедеятельности",{"$nulls":3},1,1,2]
[null,"ИТОГО:",null,{"$f":"SUM(D9:D30)","v":31},{"$f":"SUM(E9:E30)","v":32},{"$f":"SUM(F9:F30)","v":33},{"$f":"SUM(G9:G30)","v":35},{"$f":"SUM(H9:H30)","v":35},{"$f":"SUM(D31:H31)","v":166}]
[null,"Часть, формируемая участниками образовательных отношений",null,1,1,2,1,1,{"$f":"SUM(D32:H32)","v":6}]
[null,"Естественно-научные предметы","Биология",null,null,1,null,null,1]
[null,"Финансовая грамотность","Финансовая грамотность",1,{"$nulls":4},1]
[null,"Физическая культура и основы безопасности жизнедеятельности","Физическая культура ",null,1,1,1,1,{"$f":"SUM(D35:H35)","v":4}]
[null,"Учебные недели",null,34,34,34,34,34,34,null,null," "]
[null,"Всего часов",null,1088,1122,1190,1224,1224,{"$f":"SUM(D37:H37)","v":5848}]
[null,"Недельная нагрузка при 6-дневной учебной неделе",null,32,33,35,36,36,{"$f":"SUM(D38:H38)","v":172}]
[null,"Макисмально допустимая недельная нагрузка, допущенная действующими санитарными правилами и гигиеническими нормативами",null,32,33,35,{"$f":"SUM(G31+G32)","v":36},{"$f":"SUM(H31+H32)","v":36},{"$f":"SUM(I31+I32)","v":172}]

{"sheet":"7 класс.","index":6,"n_rows":38,"n_cols":9,"rows_kept":38,"merged":[[0,1,0,8],[1,1,1,8],[2,1,2,8],[3,1,3,8],[5,1,7,1],[5,2,7,2],[5,3,5,7],[5,8,7,8],[7,3,7,7],[8,1,9,1],[10,1,11,1],[12,1,13,1],[15,1,18,1],[19,1,21,1],[22,1,24,1],[25,1,26,1],[28,1,29,1],[30,1,30,2],[31,1,31,2],[34,1,34,2],[35,1,35,2],[36,1,36,2],[37,1,37,2]]}
[null,"УЧЕБНЫЙ ПЛАН"]
[null,"Муниципального бюджетного общеобразовательного учреждения \n\"Гимназия №175\" Советского района города Казани"]
[null,"на 2022/2023 учебный год "]
[null,"для 7 классов "]
[]
[null,"Предметные области","Учебные предметы","Классы",{"$nulls":4},"Всего часов"]
[{"$nulls":3},"5 класс                (2020-2021)","6 класс                (2021-2022)","7 класс                (2022-2023)","8 класс                (2023-2024)","9 класс                (2024-2025)"]
[{"$nulls":3},"Количество часов в неделю"]
[null,"Русский язык и литература","Русский язык",5,6,4,3,3,{"$f":"SUM(D9:H9)","v":21}]
[null,null,"Литература",3,3,2,2,3,{"$f":"SUM(D10:H10)","v":13}]
[null,"Родной язык и родная литература","Родной язык",2,2,2,2,2,{"$f":"SUM(D11:H11)","v":10}]
[null,null,"Родная литература",1,1,1,1,1,{"$f":"SUM(D12:H12)","v":5}]
[null,"Иностранные языки","Иностранный язык (английский)",3,3,3,3,3,15]
[null,null,"Второй иностранный язык (немецкий)",1,1,1,1,1,5]
[null,"Основы духовно-нравственной культуры народов России","Основы духовно-нравственной \nкультуры народов России",1,{"$nulls":4},1]
[null,"Математика и информатика","Математика ",5,5,{"$nulls":3},10]
[null,null,"Алгебра",null,null,3,3,3,9]
[null,null,"Геометрия",null,null,2,2,2,6]
[null,null,"Информатика",null,null,1,1,1,3]
[null,"Общественно-научные предметы","История России. Всеобшая история",2,2,2,2,2,10]
[null,null,"Обществознание",null,1,1,1,1,4]
[null,null,"География",1,1,2,2,2,8]
[null,"Естественно-научные предметы","Физика",null,null,2,2,3,{"$f":"SUM(F23:H23)","v":7}]
[null,null,"Химия",{"$nulls":3},2,2,{"$f":"SUM(G24:H24)","v":4}]
[null,null,"Биология",1,1,1,2,2,7]
[null,"Искусство","Музыка",1,1,1,1,null,4]
[null,null,"Изобразительное искусство",1,1,1,null,null,3]
[null,"Технология","Технология",2,2,2,2,1,9]
[null,"Физическая культура и основы безопасности жизнедеятельности","Физическая культура ",2,2,2,2,2,10]
[null,null,"Основы безопасноти жизнедеятельности",{"$nulls":3},1,1,2]
[null,"Итого:",null,{"$f":"SUM(D9:D30)","v":31},{"$f":"SUM(E9:E30)","v":32},{"$f":"SUM(F9:F30)","v":33},{"$f":"SUM(G9:G30)","v":35},{"$f":"SUM(H9:H30)","v":35},{"$f":"SUM(D31:H31)","v":166}]
[null,"Часть, формируемая участниками образовательных отношений",null,1,1,2,1,1,{"$f":"SUM(D32:H32)","v":6}]
[null,"Естественно-научные предметы","Биология",null,null,1,null,null,1]
[null,"Физическая культура и основы безопасности жизнедеятельности","Физическая культура ",1,1,1,1,1,{"$f":"SUM(D34:H34)","v":5}]
[null,"Учебные недели",null,34,34,34,34,34,34]
[null,"Всего часов",null,1088,1122,1190,1224,1224,{"$f":"SUM(D36:H36)","v":5848}]
[null,"Недельная нагрузка при 6-дневной учебной неделе",null,32,33,35,36,36,{"$f":"SUM(D37:H37)","v":172}]
[null,"Макисмально допустимая недельная нагрузка, допущенная действующими санитарными правилами и гигиеническими нормативами",null,32,33,35,{"$f":"SUM(G31+G32)","v":36},{"$f":"SUM(H31+H32)","v":36},{"$f":"SUM(I31+I32)","v":172}]

{"sheet":"8 класс.","index":7,"n_rows":40,"n_cols":9,"rows_kept":40,"merged":[[0,1,0,8],[1,1,1,8],[2,1,2,8],[3,1,3,8],[5,1,7,1],[5,2,7,2],[5,3,5,7],[5,8,7,8],[7,3,7,7],[8,1,9,1],[10,1,11,1],[12,1,13,1],[14,1,17,1],[18,1,20,1],[21,1,23,1],[24,1,25,1],[27,1,28,1],[30,1,30,2],[31,1,31,2],[36,1,36,2],[37,1,37,2],[38,1,38,2],[39,1,39,2]]}
[null,"УЧЕБНЫЙ ПЛАН"]
[null,"Муниципального бюджетного общеобразовательного учреждения \n\"Гимназия №175\" Советского района города Казани"]
[null,"на 2022/2023 учебный год "]
[null,"для 8 классов "]
[]
[null,"Предметные области","Учебные предметы","Классы",{"$nulls":4},"Всего часов"]
[{"$nulls":3},"5 класс                (2019-2020)","6 класс                (2020-2021)","7 класс                (2021-2022)","8 класс                (2022-2023)","9 класс                (2023-2024)"]
[{"$nulls":3},"Количество часов в неделю"]
[null,"Русский язык и литература","Русский язык",5,6,4,3,3,{"$f":"SUM(D9:H9)","v":21}]
[null,null,"Литература",3,3,2,2,3,{"$f":"SUM(D10:H10)","v":13}]
[null,"Родной язык и родная литература","Родной язык",2,2,2,2,2,{"$f":"SUM(D11:H11)","v":10}]
[null,null,"Родная литература",1,1,1,1,1,{"$f":"SUM(D12:H12)","v":5}]
[null,"Иностранные языки","Иностранный язык (английский)",3,3,3,3,3,15]
[null,null,"Второй иностранный язык (немецкий)",1,1,1,1,1,5]
[null,"Математика и информатика","Математика ",5,5,{"$nulls":3},10]
[null,null,"Алгебра",null,null,3,3,3,9]
[null,null,"Геометрия",null,null,2,2,2,6]
[null,null,"Информатика",null,null,1,1,1,3]
[null,"Общественно-научные предметы","История России. Всеобшая история",2,2,2,2,2,10]
[null,null,"Обществознание",null,1,1,1,1,4]
[null,null,"География",1,1,2,2,2,8]
[null,"Естественно-научные предметы","Физика",null,null,2,2,3,{"$f":"SUM(F22:H22)","v":7}]
[null,null,"Химия",{"$nulls":3},2,2,{"$f":"SUM(G23:H23)","v":4}]
[null,null,"Биология",1,1,1,2,2,7]
[null,"Искусство","Музыка",1,1,1,1,null,4]
[null,null,"Изобразительное искусство",1,1,1,null,null,3]
[null,"Технология","Технология",2,2,2,1,null,7]
[null,"Физическая культура и основы безопасности жизнедеятельности","Физическая культура ",2,2,2,2,2,10]
[null,null,"Основы безопасноти жизнедеятельности",{"$nulls":3},1,1,2]
[null,"Основы духовно-нравственной культуры народов России","Основы духовно-нравственной \nкультуры народов России",1,{"$nulls":4},1]
[null,"ИТОГО:",null,{"$f":"SUM(D9:D30)","v":31},{"$f":"SUM(E9:E29)","v":32},{"$f":"SUM(F9:F29)","v":33},{"$f":"SUM(G9:G29)","v":34},{"$f":"SUM(H9:H29)","v":34},{"$f":"SUM(D31:H31)","v":164}]
[null,"Часть, формируемая участниками образовательных отношений",null,1,1,2,2,2,{"$f":"SUM(D32:H32)","v":8}]
[null,"Математика и информатика","Алгебра",{"$nulls":3},1,1,{"$f":"SUM(F33:H33)","v":2}]
[null,"Естественно-научные предметы","Биология",null,null,1,null,null,1]
[null,"Общественно-научные предметы","Обществознание",1,{"$nulls":4},1]
[null,"Физическая культура и основы безопасности жизнедеятельности","Физическая культура ",null,1,1,1,1,4]
[null,"Учебные недели",null,34,34,34,34,34,34]
[null,"Всего часов",null,1088,1122,1190,1224,1224,{"$f":"SUM(D38:H38)","v":5848}]
[null,"Недельная нагрузка при 6-дневной учебной неделе",null,32,33,35,36,36,{"$f":"SUM(D39:H39)","v":172}]
[null,"Макисмально допустимая недельная нагрузка, допущенная действующими санитарными правилами и гигиеническими нормативами",null,32,33,35,36,36,{"$f":"SUM(D40:H40)","v":172}]

{"sheet":"9 класс.","index":8,"n_rows":41,"n_cols":9,"rows_kept":41,"merged":[[0,1,0,8],[1,1,1,8],[2,1,2,8],[3,1,3,8],[5,1,7,1],[5,2,7,2],[5,3,5,7],[5,8,7,8],[7,3,7,7],[8,1,9,1],[10,1,11,1],[12,1,13,1],[14,1,17,1],[18,1,20,1],[21,1,23,1],[24,1,25,1],[27,1,28,1],[30,1,30,2],[31,1,31,2],[32,1,33,1],[37,1,37,2],[38,1,38,2],[39,1,39,2],[40,1,40,2]]}
[null,"УЧЕБНЫЙ ПЛАН"]
[null,"Муниципального бюджетного общеобразовательного учреждения \n\"Гимназия №175\" Советского района города Казани"]
[null,"на 2022/2023 учебный год "]
[null,"для 9 классов "]
[]
[null,"Предметные области","Учебные предметы","Классы",{"$nulls":4},"Всего часов"]
[{"$nulls":3},"5 класс                (2018-2019)","6 класс                (2019-2020)","7 класс                (2020-2021)","8 класс                (2021-2022)","9 класс                (2022-2023)"]
[{"$nulls":3},"Количество часов в неделю"]
[null,"Русский язык и литература","Русский язык",5,6,4,3,3,{"$f":"SUM(D9:H9)","v":21}]
[null,null,"Литература",3,3,2,2,3,{"$f":"SUM(D10:H10)","v":13}]
[null,"Родной язык и родная литература","Родной язык",2,2,2,2,2,{"$f":"SUM(D11:H11)","v":10}]
[null,null,"Родная литература",1,1,1,1,1,{"$f":"SUM(D12:H12)","v":5}]
[null,"Иностранные языки","Иностранный язык (английский)",3,3,3,3,3,15]
[null,null,"Второй иностранный язык (немецкий)",null,null,1,1,1,3]
[null,"Математика и информатика","Математика ",5,5,{"$nulls":3},10]
[null,null,"Алгебра",null,null,3,3,3,9]
[null,null,"Геометрия",null,null,2,2,2,6]
[null,null,"Информатика",null,null,1,1,1,3]
[null,"Общественно-научные предметы","История России. Всеобщая история",2,2,2,2,2,10]
[null,null,"Обществознание",null,1,1,1,1,5]
[null,null,"География",1,1,2,2,2,8]
[null,"Естественно-научные предметы","Физика",null,null,2,2,3,{"$f":"SUM(F22:H22)","v":7}]
[null,null,"Химия",{"$nulls":3},2,2,{"$f":"SUM(G23:H23)","v":4}]
[null,null,"Биология",1,1,1,2,2,7]
[null,"Искусство","Музыка",1,1,1,1,null,4]
[null,null,"Изобразительное искусство",1,1,1,null,null,3]
[null,"Технология","Технология",2,2,2,1,null,7]
[null,"Физическая культура и основы безопасности жизнедеятельности","Физическая культура ",3,3,2,2,2,12]
[null,null,"Основы безопасноти жизнедеятельности",{"$nulls":3},1,1,2]
[null,"Основы духовно-нравственной культуры народов России","Основы духовно-нравственной \nкультуры народов России",1,{"$nulls":4},1]
[null,"Итого:",null,{"$f":"SUM(D9:D30)","v":31},{"$f":"SUM(E9:E29)","v":32},{"$f":"SUM(F9:F29)","v":33},{"$f":"SUM(G9:G29)","v":34},{"$f":"SUM(H9:H29)","v":34},{"$f":"SUM(D31:H31)","v":164}]
[null,"Часть, формируемая участниками образовательных отношений",null,1,1,2,2,2,8]
[null,"Математика и информатика","Математика ",null,1,{"$nulls":3},1]
[null,null,"Алгебра",{"$nulls":3},1,1,{"$f":"SUM(F34:H34)","v":2}]
[null,"Естественно-научные предметы","Биология",null,null,1,null,null,1]
[null,"Общественно-научные предметы","Обществознание",1,{"$nulls":4},1]
[null,"Физическая культура и основы безопасности жизнедеятельности","Физическая культура ",null,null,1,1,1,3]
[null,"Учебные недели",null,34,34,34,34,34,34]
[null,"Всего часов",null,1088,1122,1190,1224,1224,{"$f":"SUM(D39:H39)","v":5848}]
[null,"Недельная нагрузка при 6-дневной учебной неделе",null,32,33,35,36,36,{"$f":"SUM(D40:H40)","v":172}]
[null,"Макисмально допустимая недельная нагрузка, допущенная действующими санитарными правилами и гигиеническими нормативами",null,32,33,35,36,36,{"$f":"SUM(D41:H41)","v":172}]

{"sheet":"10 класс.","index":9,"n_rows":44,"n_cols":8,"rows_kept":44,"merged":[[0,0,0,7],[1,0,1,7],[2,0,2,7],[3,0,3,7],[4,0,5,0],[4,1,5,1],[4,2,5,2],[4,3,4,5],[4,7,5,7],[6,0,7,0],[11,0,14,0],[15,0,16,0],[15,1,18,1],[15,2,18,2],[15,3,18,3],[15,4,18,4],[15,5,18,5],[15,7,16,7],[19,0,20,0],[21,0,21,2],[22,0,22,7],[23,0,23,2],[24,0,24,2],[25,0,25,2],[26,0,26,2],[27,0,27,2],[28,0,28,2],[29,0,29,2],[30,0,30,2],[31,0,31,1],[32,0,32,1],[33,0,33,1],[34,0,34,1],[35,0,35,1],[36,0,36,1],[37,0,37,1],[38,0,38,1],[39,0,39,2],[40,0,40,2],[41,0,41,2],[42,0,42,2],[43,0,43,2]]}
["УЧЕБНЫЙ ПЛАН "]
["Муниципального бюджетного общеобразовательного учреждения \n\"Гимназия №175\" Советского района города Казани"]
["на 2022/2023 учебный год "]
["для 10а класса (универсальный профиль обучения)"]
["Предметные \nобласти","Учебные предметы","Уровень","Количество часов в неделю",{"$nulls":3},"Количество \nчасов"]
[{"$nulls":3},"10а класс\n(2022-2023)","11а класс \n(2023-2024)","Всего"]
["Русский язык и литература","Русский язык","Углубленный",3,3,6,null,204]
[null,"Литература","Базовый",3,3,6,null,204]
["Родной язык и родная литература","Родной язык","Базовый",1,1,2,null,68]
["Иностранные языки","Иностранный язык \n(английский)","Базовый",3,3,6,null,204]
["Математика и информатика","Математика ","Базовый",5,5,10,null,340]
["Общественные науки","История","Базовый",2,2,4,null,136]
[null,"Обществознание","Базовый",2,2,4,null,136]
[null,"Право","Углубленный",2,2,4,null,136]
[null,"Экономика","Базовый",null,1,1,null,34]
["Естественные науки","Астрономия","Базовый",1,null,1,null,34]
[]
[]
[]
["Физическая культура, экология и основы безопасности жизнедеятельности","Физическая культура","Базовый",3,3,6,null,204]
[null,"Основы безопасности жизнедеятельности","Базовый",1,1,2,null,68]
["Индивидуальный проект",null,null,1,1,2,null,68]
["Дополнительные предметы "]
["Родная литература",null,null,1,1,2,null,68]
["Экономическая и социальная география мира",null,null,1,null,1,null,34]
["Информатика: теория и практика",null,null,1,1,2,null,68]
["Органическая химия",null,null,2,null,2,null,68]
["Неорганическая химия",{"$nulls":3},2,2,null,68]
["Основы общей биологии",null,null,1,2,3,null,102]
["Физика: теория и практика",null,null,2,2,4,null,136]
["Курсы по выбору",null,null,2,2,4,null,136]
[" - Основы финансовой математики",null,"КВ",1,null,1,null,34]
[" - Углубленное изучение некоторых вопросов \nматематики",null,"КВ",null,1,1,null,34]
[" - Программирование на языке Python",null,"КВ",1,1,2,null,68]
[" - Химия в задачах и упражнениях\n",null,"КВ",1,1,2,null,68]
[" - Решение биологических задач повышенной сложности",null,"КВ",1,1,2,null,68]
[" - Мировая художественная культура",null,"КВ",1,null,1,null,34]
[" - Английский язык и культуроведение",null,"КВ",null,1,1,null,34]
[" - Основы финансовой грамотности",null,"КВ",1,1,2,null,68]
["Итого",null,null,37,37,74,null,74]
["Учебные недели",null,null,34,34,34,34,34]
["Всего часов",null,null,1258,1258,2516,null,2516]
["Недельная нагрузка при 6-дневной  учебной неделе",null,null,37,37,74,null,74]
["Макисмально допустимая недельная нагрузка, допущенная действующими санитарными правилами и гигиеническими нормативами",null,null,37,37,74,null,74]

{"sheet":"11 класс.","index":10,"n_rows":37,"n_cols":9,"rows_kept":37,"merged":[[0,0,0,8],[1,0,1,8],[2,0,2,8],[3,0,3,8],[4,0,5,0],[4,1,5,1],[4,2,5,2],[4,3,4,5],[4,8,5,8],[6,0,7,0],[11,0,14,0],[15,0,16,0],[15,1,18,1],[15,2,18,2],[15,3,18,3],[15,4,18,4],[15,5,18,5],[15,8,16,8],[19,0,20,0],[21,0,21,1],[22,0,22,8],[23,0,23,2],[24,0,24,2],[25,0,25,2],[26,0,26,2],[27,0,27,2],[28,0,28,2],[29,0,29,1],[30,0,30,1],[31,0,31,1],[32,0,32,2],[33,0,33,2],[34,0,34,2],[35,0,35,2],[36,0,36,2]]}
["УЧЕБНЫЙ ПЛАН "]
["Муниципального бюджетного общеобразовательного учреждения \n\"Гимназия №175\" Советского района города Казани"]
["на 2021/2022 учебный год "]
["для 11а класса (универсальный профиль обучения)"]
["Предметные \nобласти","Учебные предметы","Уровень","Количество часов в неделю",{"$nulls":4},"Количество \nчасов"]
[{"$nulls":3},"10а класс\n(2021-2022)","11а класс \n(2022-2023)","Всего"]
["Русский язык и литература","Русский язык","Углубленный",3,3,6,null,null,204]
[null,"Литература","Базовый",3,3,6,null,null,204]
["Родной язык и родная литература","Родной язык","Базовый",1,1,2,null,null,68]
["Иностранные языки","Иностранный язык \n(английский)","Базовый",3,3,6,null,null,204]
["Математика и информатика","Математика ","Базовый",5,5,10,null,null,340]
["Общественные науки","История","Базовый",2,2,4,null,null,136]
[null,"Обществознание","Базовый",2,2,4,null,null,136]
[null,"Право","Углубленный",2,2,4,null,null,136]
[null,"Экономика","Базовый",null,1,1,null,null,34]
["Естественные науки","Астрономия","Базовый",null,1,1,null,null,34]
[]
[]
[]
["Физическая культура, экология и основы безопасности жизнедеятельности","Физическая культура","Базовый",3,3,6,null,null,204]
[null,"Основы безопасности жизнедеятельности","Базовый",1,1,2,null,null,68]
["Индивидуальный проект",null,null,1,1,2,null,null,68]
["Дополнительные учебные предметы, курсы по выбору"]
["Родная литература",null,null,1,1,2,null,null,68]
["Информатика и ИКТ",null,null,2,2,4,null,null,136]
["География",null,null,1,null,1,null,null,34]
["Физика",null,null,2,2,4,null,null,136]
["Химия",null,null,2,2,4,null,null,136]
["Биология",null,null,1,1,2,null,null,68]
["Основы финансовой математики \n\n",null,"КВ",1,null,1,null,null,34]
["Химия в задачах и упражнениях",null,"КВ",1,null,1,null,null,34]
["Углубленное изучение некоторых вопросов математики\n\n ",null,"КВ",null,1,1,null,null,34]
["Итого",null,null,{"$f":"SUM(D7:D32)","v":37},{"$f":"SUM(E7:E32)","v":37},74,null,74,74]
["Учебные недели",null,null,34,34,34,34,34,34]
["Всего часов",null,null,1258,1258,2516,null,2516,2516]
["Недельная нагрузка при 6-дневной учебной неделе",null,null,37,37,74,null,74,74]
["Макисмально допустимая недельная нагрузка, допущенная действующими санитарными правилами и гигиеническими нормативами",null,null,37,37,74,null,74,74]